[Event "Speed Chess Championship 2020"]
[Site "Online"]
[Date "2020.11.19"]
[Round "2.23"]
[White "So, Wesley"]
[Black "Duda, Jan-Krzysztof"]
[Result "0-1"]
[ECO "D77"]
[WhiteElo "2816"]
[BlackElo "2743"]
[Annotator "ChessBase"]
[PlyCount "102"]
[EventDate "2020.10.31"]
[EventType "k.o."]
[EventCountry "NET"]
[SourceTitle "playchess.com"]
[Source "ChessBase"]
[SourceQuality "1"]
[TimeControl "60+1"]

1. d4 {[%emt 0:00:01]} Nf6 {[%emt 0:00:01]} 2. c4 {[%emt 0:00:02]} g6 {[%emt 0:00:00]} 3. g3 {[%emt 0:00:03]} e6 {[%emt 0:00:03]} 4. Bg2 {[%emt 0:00:02]} d5 {[%emt 0:00:01]} 5. Nf3 {[%emt 0:00:01]} Bg7 {[%emt 0:00:01]} 6. O-O {[%emt 0:00:00]} O-O {[%emt 0:00:00]} 7. b3 {[%emt 0:00:03]} b6 {[%emt 0:00:01]} 8. Bb2 {[%emt 0:00:01]} Bb7 {[%emt 0:00:01]} 9. Nc3 {[%emt 0:00:01]} Nbd7 {[%emt 0:00:00]} 10. Rc1 {[%emt 0:00:02]} Rc8 {[%emt 0:00:01]} 11. cxd5 {[%emt 0:00:02]} Nxd5 {[%emt 0:00:00]} 12. Nxd5 {[%emt 0:00:03]} Bxd5 {[%emt 0:00:00]} 13. Qd2 {[%emt 0:00:01]} c5 {[%emt 0:00:02]} 14. dxc5 {[%emt 0:00:02]} Nxc5 {[%emt 0:00:00]} 15. Bxg7 {[%emt 0:00:04]} Kxg7 {[%emt 0:00:00]} 16. Qb2+ {[%emt 0:00:04]} Qf6 {[%emt 0:00:01]} 17. Qxf6+ {[%emt 0:00:00]} Kxf6 {[%emt 0:00:00]} 18. Nd2 {[%emt 0:00:03]} Rfd8 {[%emt 0:00:10]} 19. Bxd5 {[%emt 0:00:04]} exd5 {[%emt 0:00:03]} 20. Rfd1 {[%emt 0:00:04]} Ne4 {[%emt 0:00:04]} 21. Nxe4+ {[%emt 0:00:01]} dxe4 {[%emt 0:00:00]} 22. Rxc8 {[%emt 0:00:02]} Rxd1+ {[%emt 0:00:02]} 23. Kg2 {[%emt 0:00:01]} Rd2 {[%emt 0:00:00]} 24. e3 {[%emt 0:00:05]} Rxa2 {[%emt 0:00:01]} 25. Rc4 {[%emt 0:00:02]} Ke5 {[%emt 0:00:02]} 26. Rc7 {[%emt 0:00:01]} Ke6 {[%emt 0:00:00]} 27. Rc4 {[%emt 0:00:01]} f5 {[%emt 0:00:02]} 28. Rc7 {[%emt 0:00:01]} h5 {[%emt 0:00:03]} 29. Rc6+ {[%emt 0:00:01]} Kf7 {[%emt 0:00:01]} 30. h4 {[%emt 0:00:01]} b5 {[%emt 0:00:01]} 31. b4 {[%emt 0:00:02]} Ra4 {[%emt 0:00:02]} 32. Kf1 {[%emt 0:00:02]} Rxb4 {[%emt 0:00:02]} 33. Rc7+ {[%emt 0:00:01]} Ke6 {[%emt 0:00:03]} 34. Rxa7 {[%emt 0:00:00]} Ra4 {[%emt 0:00:08]} 35. Rb7 {[%emt 0:00:01]} b4 {[%emt 0:00:02]} 36. Rb6+ {[%emt 0:00:02]} Kd5 {[%emt 0:00:00]} 37. Rxg6 {[%emt 0:00:00]} b3 {[%emt 0:00:01]} 38. Rb6 {[%emt 0:00:03]} Kc4 {[%emt 0:00:01]} 39. Rc6+ {[%emt 0:00:14]} Kd3 {[%emt 0:00:03]} 40. Rb6 {[%emt 0:00:01]} Kc3 {[%emt 0:00:00]} 41. f3 {[%emt 0:00:06]} b2 {[%emt 0:00:01]} 42. fxe4 {[%emt 0:00:01]} Rxe4 {[%emt 0:00:01]} 43. Rxb2 {[%emt 0:00:09]} Kxb2 {[%emt 0:00:02]} 44. Ke2 {[%emt 0:00:00]} Kc3 {[%emt 0:00:00]} 45. Kf2 {[%emt 0:00:01]} Kd3 {[%emt 0:00:01]} 46. Kf3 {[%emt 0:00:00]} Kd2 {[%emt 0:00:01]} 47. Kf2 {[%emt 0:00:01]} Rxe3 {[%emt 0:00:01]} 48. Kg2 {[%emt 0:00:00]} Ke2 {[%emt 0:00:01]} 49. Kh2 {[%emt 0:00:01]} Kf2 {[%emt 0:00:00]} 50. Kh3 {[%emt 0:00:02]} Rxg3+ {[%emt 0:00:01]} 51. Kh2 {[%emt 0:00:00]} f4 {[%emt 0:00:01]} 0-1

[Event "Speed Chess Championship 2020"]
[Site "Online"]
[Date "2020.11.19"]
[Round "2.24"]
[White "Duda, Jan-Krzysztof"]
[Black "So, Wesley"]
[Result "0-1"]
[ECO "C25"]
[WhiteElo "2743"]
[BlackElo "2816"]
[Annotator "RC"]
[PlyCount "48"]
[EventDate "2020.10.31"]
[EventType "k.o."]
[EventCountry "NET"]
[SourceTitle "playchess.com"]
[Source "ChessBase"]
[SourceQuality "1"]
[TimeControl "60+1"]

1. e4 {[%emt 0:00:01]} e5 {[%emt 0:00:01]} 2. Nc3 {[%emt 0:00:00]} Nc6 {[%emt 0:00:01]} 3. f4 {[%emt 0:00:00]} exf4 {[%emt 0:00:03]} 4. d4 {[%emt 0:00:01]} Bb4 {[%emt 0:00:02]} 5. Bxf4 {[%emt 0:00:03]} Nf6 {[%emt 0:00:00]} 6. Qd3 {[%emt 0:00:09]} d5 {[%emt 0:00:02]} 7. O-O-O {[%emt 0:00:18]} Bxc3 {[%emt 0:00:04]} 8. Qxc3 {[%emt 0:00:01]} Nxe4 {[%emt 0:00:01]} 9. Qe3 {[%emt 0:00:01]} O-O {[%emt 0:00:02]} 10. Nf3 {[%emt 0:00:00]} Re8 {[%emt 0:00:01]} 11. Bd3 {[%emt 0:00:02]} Bf5 {[%emt 0:00:01]} 12. Ne5 {[%emt 0:00:02]} Nxe5 {[%emt 0:00:04]} 13. dxe5 {[%emt 0:00:01]} Qe7 {[%emt 0:00:01]} 14. Rdg1 {[%emt 0:00:06]} Bg6 {[%emt 0:00:06]} 15. h4 {[%emt 0:00:02]} Nc5 {[%emt 0:00:03]} 16. Bxg6 {[%emt 0:00:06]} fxg6 {[%emt 0:00:01]} 17. h5 {[%emt 0:00:00]} g5 {[%emt 0:00:00]} 18. Bg3 {[%emt 0:00:07]} h6 {[%emt 0:00:02]} 19. Rf1 {[%emt 0:00:04]} Rf8 {[%emt 0:00:01]} 20. e6 {[%emt 0:00:03]} Ne4 {[%emt 0:00:03]} 21. Be5 {[%emt 0:00:02]} c6 {[%emt 0:00:03]} 22. Qd4 {[%emt 0:00:02]} Qxe6 {[%emt 0:00:05]} 23. Bxg7 {[%emt 0:00:02]} Rxf1+ {[%emt 0:00:02]} 24. Rxf1 {[%emt 0:00:01]} Ng3 {[%emt 0:00:00]} 0-1